bitfinex/quotes_BTCUSD_20260127
["timestamp","ask_amount","ask_price","bid_price","bid_amount"]
[1769490828438,0.00046727,88515.0,88507.0,0.58914832]
[1769490830099,1.07226482,88560.0,88507.0,0.58914832]
[1769490830100,0.39976864,88530.0,88515.0,0.00046727]
[1769490830303,0.01129535,88532.0,88516.0,0.50550751]
[1769490830304,0.11213128,88529.0,88516.0,0.50550751]
[1769490830504,0.48368514,88533.0,88517.0,0.11612]
[1769490830505,0.11213128,88528.0,88517.0,0.11612]
[1769490830725,0.11213128,88527.0,88517.0,0.11612]
[1769490830926,0.11213128,88526.0,88517.0,0.11612]
[1769490831073,0.11213128,88525.0,88517.0,0.11612]
[1769490831312,0.11213128,88524.0,88517.0,0.11612]
[1769490831534,0.11213128,88523.0,88517.0,0.11612]
[1769490831735,0.11213128,88522.0,88517.0,0.11612]
[1769490831950,0.50663007,88533.0,88517.0,0.11612]
[1769490832160,0.11214518,88532.0,88517.0,0.11612]
[1769490832306,0.50663007,88533.0,88517.0,0.11612]
[1769490832307,0.11214518,88531.0,88517.0,0.11612]
[1769490832512,0.11214518,88530.0,88520.0,0.37682371]
[1769490834433,0.11214381,88532.0,88519.0,0.5061362]
[1769490834630,0.11214381,88531.0,88519.0,0.5061362]
[1769490834811,0.11214381,88530.0,88519.0,0.5061362]
[1769490834997,0.11214381,88530.0,88517.0,0.11612]
[1769490834998,0.11214381,88529.0,88517.0,0.11612]
[1769490835222,0.11214381,88528.0,88517.0,0.11612]
[1769490835422,0.11214381,88527.0,88517.0,0.11612]
[1769490835664,0.11214381,88526.0,88517.0,0.11612]
[1769490835861,0.11214381,88525.0,88518.0,0.53085555]
[1769490836182,0.02446835,88536.0,88518.0,0.53085555]
[1769490836379,0.0898279,88538.0,88518.0,0.53085555]
[1769490836380,0.5382871,88537.0,88518.0,0.53085555]
[1769490836586,0.5382871,88537.0,88519.0,0.02471935]
[1769490836955,0.54958181,88537.0,88519.0,0.02471935]
[1769490837971,0.5382871,88537.0,88519.0,0.02471935]
[1769490838657,0.54958181,88537.0,88519.0,0.02471935]
[1769490839391,0.5382871,88537.0,88520.0,0.06471155]
[1769490839599,0.54958181,88537.0,88520.0,0.0894309]
[1769490840077,0.5382871,88537.0,88520.0,0.0894309]
[1769490840284,0.54958181,88537.0,88520.0,0.02471935]
[1769490841114,0.01129484,88536.0,88520.0,0.02471935]
[1769490841612,0.54958181,88537.0,88520.0,0.02471935]
[1769490842314,0.5382871,88537.0,88520.0,0.02471935]
[1769490843558,0.5382871,88537.0,88520.0,0.5061362]
[1769490843774,0.5382871,88537.0,88521.0,0.02471935]
[1769490843953,0.5382871,88537.0,88521.0,0.05183935]
[1769490844480,0.01129369,88545.0,88524.0,0.5061362]
[1769490844699,0.04522654,88546.0,88527.0,0.02471935]
[1769490844914,0.5382871,88545.0,88527.0,0.02471935]
[1769490845135,0.02446835,88544.0,88524.0,0.07009422]
[1769490845342,0.56275545,88542.0,88524.0,0.07009422]
[1769490845549,0.56275545,88542.0,88521.0,0.02712]
[1769490845550,0.56275545,88542.0,88523.0,0.02471935]
[1769490845768,0.56275545,88542.0,88524.0,0.02471935]
[1769490845968,0.36971497,88542.0,88524.0,0.53085555]
[1769490846173,0.36971497,88542.0,88525.0,0.02471935]
[1769490846798,0.0112942,88541.0,88525.0,0.02471935]
[1769490847054,0.36971497,88542.0,88526.0,0.11818681]
[1769490847479,0.38100904,88542.0,88526.0,0.09346746]
[1769490847715,0.38100904,88542.0,88527.0,0.02471935]
[1769490848118,0.36971497,88542.0,88527.0,0.02471935]
[1769490848474,0.11205571,88541.0,88527.0,0.02471935]
[1769490848671,0.38100904,88542.0,88527.0,0.02471935]
[1769490848672,0.11205571,88540.0,88527.0,0.02471935]
[1769490848882,0.11205571,88539.0,88527.0,0.02471935]
[1769490849081,0.11205571,88538.0,88527.0,0.02471935]
[1769490849303,0.11205571,88537.0,88527.0,0.02471935]
[1769490849502,0.11205571,88536.0,88527.0,0.02471935]
[1769490849705,0.36971497,88542.0,88527.0,0.02471935]
[1769490849706,9.12e-05,88541.0,88527.0,0.02471935]
[1769490849918,0.11205133,88540.0,88527.0,0.02471935]
[1769490850109,0.11205133,88539.0,88527.0,0.02471935]
[1769490850346,0.11205133,88538.0,88527.0,0.02471935]
[1769490850685,0.11205133,88537.0,88527.0,0.02471935]
[1769490850890,0.11205133,88536.0,88527.0,0.02471935]
[1769490851068,9.12e-05,88541.0,88527.0,0.02471935]
[1769490851212,0.11204929,88540.0,88527.0,0.02471935]
[1769490851417,0.11204929,88539.0,88527.0,0.02471935]
[1769490851627,0.11204929,88538.0,88527.0,0.02471935]
[1769490851833,0.11204929,88537.0,88527.0,0.02471935]
[1769490852036,0.11204929,88536.0,88527.0,0.02471935]
[1769490852232,9.12e-05,88541.0,88527.0,0.02471935]
[1769490852432,0.11205126,88540.0,88530.0,0.376699]
[1769490852686,9.12e-05,88541.0,88533.0,0.44954346]
[1769490852990,9.12e-05,88541.0,88534.0,0.08420661]
[1769490863111,9.12e-05,88541.0,88535.0,0.02712]
[1769490864863,0.1121953,88540.0,88535.0,0.02712]
[1769490865014,9.12e-05,88541.0,88535.0,0.02712]
[1769490865015,0.1121953,88539.0,88535.0,0.02712]
[1769490865219,0.1121953,88538.0,88535.0,0.02712]
[1769490865472,0.1121953,88537.0,88535.0,0.02712]
[1769490865643,0.1121953,88536.0,88535.0,0.02712]
[1769490866040,0.1121953,88540.0,88535.0,0.02712]
[1769490866294,0.1121953,88539.0,88535.0,0.02712]
[1769490866492,0.1121953,88538.0,88535.0,0.02712]
[1769490866715,0.1121953,88537.0,88535.0,0.02712]
[1769490866894,0.1121953,88536.0,88535.0,0.02712]
[1769490867407,0.0227955,88540.0,88535.0,0.02712]
[1769490867408,0.1121953,88539.0,88535.0,0.02712]
[1769490869229,0.0227955,88538.0,88535.0,0.02712]
[1769490869440,0.00339199,88534.0,88526.0,0.5326749]
[1769490869663,0.00339199,88534.0,88529.0,0.02712]
[1769490870394,0.0227955,88539.0,88529.0,0.02712]
[1769490870616,0.11223602,88538.0,88534.0,0.00339198]
[1769490870952,0.0227955,88539.0,88529.0,0.5597949]
[1769490871103,0.11223646,88538.0,88529.0,0.60677664]
[1769490871320,9.12e-05,88541.0,88529.0,0.60677664]
[1769490872410,9.12e-05,88541.0,88529.0,0.5597949]
[1769490873644,9.12e-05,88541.0,88530.0,0.376699]
[1769490873846,9.12e-05,88541.0,88530.0,0.9093739]
[1769490879490,0.11222712,88540.0,88530.0,0.9093739]
[1769490879712,0.11222712,88539.0,88530.0,0.9093739]
[1769490879911,9.12e-05,88541.0,88530.0,0.9093739]
[1769490880090,0.11222821,88540.0,88530.0,0.5326749]
[1769490880288,0.11222821,88539.0,88530.0,0.9093739]
[1769490880529,9.12e-05,88541.0,88530.0,0.9093739]
[1769490880730,0.11222674,88540.0,88530.0,0.9093739]
[1769490880953,9.12e-05,88541.0,88530.0,0.9093739]
[1769490880954,0.11222674,88539.0,88530.0,0.9093739]
[1769490881136,9.12e-05,88541.0,88530.0,0.9093739]
[1769490881494,0.11222346,88540.0,88530.0,0.9093739]
[1769490881676,0.11222346,88539.0,88530.0,0.9093739]
[1769490881903,9.12e-05,88541.0,88530.0,0.9093739]
[1769490882096,0.11221939,88540.0,88530.0,0.9093739]
[1769490882260,0.11221939,88539.0,88530.0,0.9093739]
[1769490882468,9.12e-05,88541.0,88530.0,0.9093739]
[1769490882670,0.11221961,88540.0,88530.0,0.9093739]
[1769490883001,0.11221961,88539.0,88531.0,0.5326749]
[1769490883168,9.12e-05,88541.0,88531.0,0.5326749]
[1769490883349,0.11221803,88540.0,88531.0,0.5326749]
[1769490883698,0.11221803,88539.0,88531.0,0.5326749]
[1769490883884,9.12e-05,88541.0,88531.0,0.5326749]
[1769490884051,0.11221506,88540.0,88531.0,0.5326749]
[1769490884272,0.11221506,88539.0,88531.0,0.5326749]
[1769490884459,9.12e-05,88541.0,88530.0,0.376699]
[1769490884677,0.0227955,88540.0,88530.0,0.376699]
[1769490885079,9.12e-05,88541.0,88530.0,0.376699]
[1769490885080,9.12e-05,88541.0,88530.0,0.9093739]
[1769490885242,9.12e-05,88541.0,88530.0,0.5326749]
[1769490885444,9.12e-05,88541.0,88530.0,0.9093739]
[1769490886682,9.12e-05,88541.0,88531.0,0.10699579]
[1769490886883,9.12e-05,88541.0,88532.0,0.5326749]
[1769490889215,9.12e-05,88541.0,88530.0,0.376699]
[1769490891744,9.12e-05,88541.0,88530.0,0.37655135]
[1769490892534,9.12e-05,88541.0,88531.0,0.55010503]
[1769490895294,9.12e-05,88541.0,88529.0,0.02712]
[1769490896361,0.11209388,88540.0,88529.0,0.02712]
[1769490896594,9.12e-05,88541.0,88529.0,0.02712]
[1769490896735,0.11209388,88540.0,88530.0,0.55010503]
[1769490896947,9.12e-05,88541.0,88530.0,0.55010503]
[1769490897171,0.11209392,88540.0,88530.0,0.55010503]
[1769490897371,9.12e-05,88541.0,88530.0,0.55010503]
[1769490897595,0.11210179,88540.0,88530.0,0.55010503]
[1769490897803,9.12e-05,88541.0,88530.0,0.57308002]
[1769490898001,0.11210201,88540.0,88530.0,0.57308002]
[1769490898215,9.12e-05,88541.0,88530.0,0.57308002]
[1769490898412,0.11211122,88540.0,88530.0,0.57308002]
[1769490898708,9.12e-05,88541.0,88530.0,0.57308002]
[1769490898866,0.11211136,88540.0,88530.0,0.57308002]
[1769490899080,0.0001476,88549.0,88531.0,0.071628]
[1769490899258,0.11211354,88548.0,88535.0,0.55010503]
[1769490899473,0.11211354,88547.0,88535.0,0.55010503]
[1769490899680,0.11211354,88546.0,88535.0,0.55010503]
[1769490899905,0.11211354,88545.0,88535.0,0.61012503]
[1769490900106,0.11211354,88544.0,88535.0,0.61012503]
[1769490900310,0.11211354,88543.0,88535.0,0.61012503]
[1769490900510,0.11211354,88542.0,88535.0,0.55010503]
[1769490900734,0.11211354,88541.0,88534.0,0.02297499]
[1769490900932,0.0001476,88549.0,88534.0,0.02297499]
[1769490901126,0.11214181,88548.0,88534.0,0.02297499]
[1769490901389,0.0001476,88549.0,88535.0,0.02712]
[1769490901390,0.11214181,88547.0,88535.0,0.02712]
[1769490901602,0.11214181,88546.0,88535.0,0.02712]
[1769490901808,0.11214181,88545.0,88535.0,0.02712]
[1769490902010,0.11214181,88544.0,88535.0,0.02712]
[1769490902210,0.0001476,88549.0,88535.0,0.02712]
[1769490902211,0.11214181,88543.0,88535.0,0.02712]
[1769490902412,0.11214181,88542.0,88535.0,0.02712]
[1769490902607,0.11214181,88541.0,88535.0,0.02712]
[1769490902814,0.0001476,88549.0,88535.0,0.02712]
[1769490903018,0.11214328,88548.0,88535.0,0.02712]
[1769490903264,0.11214328,88547.0,88535.0,0.02712]
[1769490903471,0.11214328,88546.0,88535.0,0.02712]
[1769490903687,0.11214328,88545.0,88535.0,0.02712]
[1769490903913,0.11214328,88544.0,88535.0,0.02712]
[1769490904127,0.11214328,88543.0,88535.0,0.02712]
[1769490904312,0.11214328,88542.0,88535.0,0.02712]
[1769490904539,0.11214328,88541.0,88535.0,0.02712]
[1769490904733,0.0001476,88549.0,88535.0,0.02712]
[1769490904943,0.11213765,88548.0,88536.0,0.55010503]
[1769490905168,0.11213765,88547.0,88536.0,0.55010503]
[1769490905372,0.11213765,88546.0,88536.0,0.55010503]
[1769490905589,0.11213765,88545.0,88536.0,0.57308002]
[1769490905814,0.11213765,88544.0,88536.0,0.592986]
[1769490906013,0.11213765,88543.0,88538.0,0.55010503]
[1769490906150,0.11213765,88543.0,88535.0,0.02712]
[1769490906151,0.0001476,88549.0,88540.0,0.55010503]
[1769490906352,0.11213826,88548.0,88540.0,0.55010503]
[1769490906591,0.11213826,88547.0,88540.0,0.55010503]
[1769490906798,0.11213826,88546.0,88540.0,0.55010503]
[1769490906943,0.11213826,88545.0,88540.0,0.55010503]
[1769490907157,0.11213826,88544.0,88540.0,0.55010503]
[1769490907358,0.0001476,88549.0,88540.0,0.55010503]
[1769490907563,0.11212306,88548.0,88541.0,0.02297499]
[1769490907763,0.0001476,88549.0,88543.0,0.02297499]
[1769490909003,0.0001476,88549.0,88543.0,0.02311496]
[1769490909225,0.0001476,88549.0,88543.0,0.00013997]
[1769490909661,0.36068705,88558.0,88543.0,0.00013997]
[1769490910314,0.33645081,88558.0,88543.0,0.00013997]
[1769490910513,0.02423624,88556.0,88543.0,0.05747673]
[1769490911147,0.02423624,88556.0,88544.0,0.02712]
[1769490911343,0.02423624,88556.0,88545.0,0.11608]
[1769490912018,0.02423624,88566.0,88546.0,0.55010503]
[1769490912197,0.53872802,88565.0,88546.0,0.55010503]
[1769490912541,0.02723395,88567.0,88546.0,0.55010503]
[1769490912542,0.53872802,88564.0,88547.0,0.10929713]
[1769490912734,0.02423624,88561.0,88543.0,0.00013997]
[1769490912902,0.02423624,88557.0,88544.0,0.11594003]
[1769490913110,0.02423624,88555.0,88544.0,0.11594003]
[1769490913322,0.02423624,88551.0,88545.0,0.11608]
[1769490913541,0.02423624,88549.0,88545.0,0.11608]
[1769490913685,0.02423624,88548.0,88545.0,0.11608]
[1769490914300,0.53872802,88547.0,88545.0,0.11608]
[1769490914577,0.56296426,88546.0,88545.0,0.11608]
[1769490915050,0.02423624,88546.0,88543.0,0.00013997]
[1769490915283,0.02423624,88545.0,88543.0,0.00013997]
[1769490915533,0.56296426,88545.0,88543.0,0.00013997]
[1769490916200,0.0112919,88559.0,88518.0,0.02312259]
[1769490916201,0.02708635,88544.0,88518.0,0.02312259]
[1769490916414,0.56296426,88541.0,88527.0,0.00021089]
[1769490919476,0.53872802,88541.0,88527.0,0.00021089]
[1769490919685,0.02423624,88538.0,88527.0,0.00021089]
[1769490919889,0.56296426,88538.0,88527.0,0.00021089]
[1769490920320,0.53872802,88536.0,88527.0,0.00021089]
[1769490920516,0.02423624,88535.0,88527.0,0.00021089]
[1769490920746,0.02423624,88533.0,88527.0,0.00021089]
[1769490920972,0.56296426,88533.0,88527.0,0.00021089]
[1769490922317,0.59196982,88531.0,88527.0,0.00021089]
[1769490924372,0.56734468,88531.0,88527.0,0.0010816]
[1769490924497,0.02708635,88544.0,88508.0,0.0002261]
[1769490924498,0.56734468,88527.0,88508.0,0.0002261]
[1769490924834,0.56734468,88523.0,88508.0,0.1163061]
[1769490925108,0.02462514,88518.0,88508.0,0.1163061]
[1769490925254,0.59196982,88516.0,88508.0,0.1163061]
[1769490925995,0.58196982,88516.0,88508.0,0.1163061]
[1769490927157,0.56734468,88516.0,88508.0,0.1163061]
[1769490927359,0.56734468,88514.0,88508.0,0.1163061]
[1769490927992,0.56734468,88512.0,88502.0,0.02712]
[1769490928525,0.59196982,88512.0,88502.0,0.02712]
[1769490928726,0.02462514,88511.0,88502.0,0.02712]
[1769490928989,0.56734468,88510.0,88502.0,0.02712]
[1769490929115,0.56734468,88522.0,88500.0,10.0]
[1769490929318,0.02462514,88519.0,88500.0,10.0]
[1769490929550,0.02462514,88517.0,88500.0,10.0]
[1769490929760,0.56734468,88514.0,88500.0,10.0]
[1769490929969,0.56734468,88512.0,88500.0,10.0]
[1769490930127,0.56734468,88510.0,88500.0,10.0]
[1769490930331,0.02462514,88509.0,88500.0,10.0]
[1769490930530,0.54271954,88509.0,88500.0,10.0]
[1769490930739,0.54271954,88509.0,88501.0,0.05575369]
[1769490931397,0.54271954,88509.0,88500.0,10.0]
[1769490934998,0.23423806,88509.0,88500.0,10.0]
[1769490935204,0.56734468,88526.0,88501.0,0.03248406]
[1769490935410,8.44e-05,88527.0,88512.0,0.03248406]
[1769490936937,0.56742908,88527.0,88512.0,0.03248406]
[1769490938625,0.6253015,88527.0,88512.0,0.03248406]
[1769490941025,0.6253015,88527.0,88505.0,0.11608]
[1769490942561,0.03838246,88526.0,88505.0,0.11608]
[1769490942770,0.56734468,88525.0,88505.0,0.11608]
[1769490943514,0.57864092,88525.0,88505.0,0.11608]
[1769490943719,0.56734468,88522.0,88505.0,0.11608]
[1769490944348,0.56734468,88522.0,88500.0,10.0]
[1769490944687,0.56734468,88520.0,88500.0,9.99856107]
[1769490947375,0.56734468,88520.0,88501.0,0.03698141]
[1769490947555,0.56734468,88520.0,88502.0,0.03698141]
[1769490948176,0.56734468,88520.0,88500.0,9.99856107]
[1769490948177,0.56734468,88520.0,88503.0,0.03698141]
[1769490951389,0.56734468,88520.0,88502.0,0.11160278]
[1769490951622,0.56734468,88520.0,88500.0,10.37537566]
[1769490951731,0.56734468,88515.0,88500.0,9.24803446]
[1769490951933,0.56734468,88513.0,88500.0,9.24803446]
[1769490955172,0.39904532,88513.0,88500.0,9.24803446]
[1769490955573,0.57419141,88512.0,88500.0,9.24803446]
[1769490958326,0.4115579,88512.0,88500.0,9.09009632]
[1769490962382,0.01129662,88522.0,88502.0,0.54692835]
[1769490962583,0.57419141,88520.0,88503.0,0.03248436]
[1769490962788,0.68615202,88519.0,88503.0,0.03248436]
[1769490962986,0.57419141,88517.0,88503.0,0.03248436]
[1769490963325,0.68615202,88516.0,88503.0,0.03248436]
[1769490963523,0.57419141,88516.0,88503.0,0.03248436]
[1769490966556,0.5854879,88523.0,88503.0,0.03248436]
[1769490966809,0.68614751,88522.0,88503.0,0.03248436]
[1769490966967,0.68614751,88521.0,88503.0,0.03248436]
[1769490967169,0.1119561,88520.0,88503.0,0.03248436]
[1769490967994,0.13218881,88519.0,88503.0,0.03248436]
[1769490968190,0.1119561,88518.0,88503.0,0.03248436]
[1769490969856,0.1119561,88517.0,88503.0,0.03248436]
[1769490970059,0.1119561,88516.0,88503.0,0.03248436]
[1769490970264,0.1119561,88515.0,88503.0,0.03248436]
[1769490970475,0.1119561,88514.0,88503.0,0.03248436]
[1769490970686,0.57419141,88520.0,88503.0,0.03248436]
[1769490970895,0.11198533,88519.0,88503.0,0.03248436]
[1769490971102,0.11198533,88518.0,88503.0,0.03248436]
[1769490971330,0.11198533,88517.0,88503.0,0.03248436]
[1769490971540,0.11198533,88516.0,88503.0,0.03248436]
[1769490971751,0.11198533,88515.0,88503.0,0.03248436]
[1769490971952,0.11198533,88514.0,88503.0,0.03248436]
[1769490972084,0.11198533,88513.0,88503.0,0.03248436]
[1769490972289,0.57419141,88517.0,88503.0,0.03248436]
[1769490972474,0.11200454,88516.0,88503.0,0.03248436]
[1769490972832,0.57419141,88514.0,88503.0,0.03248436]
[1769490973028,0.11200454,88513.0,88503.0,0.03248436]
[1769490973226,0.57419141,88514.0,88503.0,0.03248436]
[1769490973427,0.11201131,88513.0,88503.0,0.03248436]
[1769490973631,0.57419141,88514.0,88503.0,0.03248436]
[1769490973789,0.11201009,88513.0,88503.0,0.03248436]
[1769490975174,0.11201009,88512.0,88504.0,0.02573848]
[1769490975380,0.11201009,88511.0,88504.0,0.02573848]
[1769490975530,0.01129713,88518.0,88504.0,0.02573848]
[1769490975738,0.12331803,88517.0,88504.0,0.02573848]
[1769490975941,0.11202077,88516.0,88504.0,0.02573848]
[1769490977318,0.11202077,88516.0,88506.0,0.02573848]
[1769490977533,0.11202077,88515.0,88506.0,0.02573848]
[1769490977730,0.11202077,88514.0,88506.0,0.02573848]
[1769490977978,0.11202077,88513.0,88507.0,0.02573848]
[1769490978182,0.11202077,88512.0,88507.0,0.02573848]
[1769490978393,0.11202077,88511.0,88509.0,0.02573848]
[1769490978603,0.11202077,88510.0,88509.0,0.02573848]
[1769490978826,0.12331803,88517.0,88509.0,0.02573848]
[1769490978999,0.15248929,88516.0,88500.0,9.09009632]
[1769490979202,0.11202077,88515.0,88501.0,0.02348991]
[1769490981454,0.12331829,88515.0,88501.0,0.02348991]
[1769490981655,0.11202077,88514.0,88501.0,0.02348991]
[1769490981886,0.11202077,88513.0,88501.0,0.02348991]
[1769490982091,0.13630742,88512.0,88501.0,0.02348991]
[1769490982299,0.11202077,88511.0,88501.0,0.02348991]
[1769490983931,0.11202077,88510.0,88501.0,0.02348991]
[1769490984126,0.11202077,88509.0,88501.0,0.02348991]
[1769490984331,0.11202077,88508.0,88501.0,0.02348991]
[1769490984538,0.01233184,88507.0,88501.0,0.02348991]
[1769490984744,0.01129764,88514.0,88501.0,0.02348991]
[1769490984944,0.02708635,88510.0,88501.0,0.02348991]
[1769490985149,0.11215467,88509.0,88501.0,0.02348991]
[1769490985349,0.01129739,88516.0,88501.0,0.02348991]
[1769490985563,0.02708635,88512.0,88501.0,0.02348991]
[1769490988551,0.01739532,88512.0,88501.0,0.02348991]
[1769490989653,0.03838412,88513.0,88501.0,0.02348991]
[1769490990197,0.62817181,88513.0,88500.0,8.96692146]
[1769490990380,0.03838412,88513.0,88500.0,8.96692146]
[1769490990553,0.02708635,88513.0,88500.0,8.96692146]
[1769490990754,0.02708635,88513.0,88500.0,8.99180104]
[1769490991274,0.03838412,88513.0,88500.0,8.99180104]
[1769490992292,0.01129803,88511.0,88500.0,8.99180104]
[1769490992473,0.0112979,88512.0,88500.0,8.99180104]
[1769490993432,0.01129815,88510.0,88500.0,8.99180104]
[1769490993656,0.02708635,88513.0,88500.0,8.96692146]
[1769490993934,0.58978769,88512.0,88500.0,8.96692146]
[1769490994139,0.01129905,88503.0,88500.0,8.96692146]
[1769490994298,0.01129879,88505.0,88500.0,8.96692146]
[1769490994706,0.01129866,88506.0,88500.0,8.96692146]
[1769490994883,0.01129841,88508.0,88500.0,8.96692146]
[1769490995094,0.01129854,88507.0,88500.0,8.96692146]
[1769490995309,0.01129866,88506.0,88500.0,8.96692146]
[1769490995797,0.46958046,88509.0,88500.0,8.96692146]
[1769490995985,0.01129841,88508.0,88500.0,8.96692146]
[1769490996814,0.01129854,88507.0,88500.0,8.96692146]
[1769490997022,0.06779095,88508.0,88500.0,8.96692146]
[1769490997440,0.12338561,88507.0,88500.0,8.96692146]
[1769490997708,0.01129854,88507.0,88500.0,8.96692146]
[1769490998046,0.01129841,88508.0,88500.0,8.96692146]
[1769490998253,0.12337806,88507.0,88500.0,8.96692146]
[1769490998447,0.01129879,88505.0,88500.0,8.96692146]
[1769490998679,0.01129866,88506.0,88500.0,8.96692146]
[1769490998828,0.01129841,88508.0,88500.0,8.96692146]
[1769490999028,0.1120802,88507.0,88500.0,8.96692146]
[1769490999230,0.01129841,88508.0,88500.0,8.96692146]
[1769490999437,0.12337274,88507.0,88500.0,8.96692146]
[1769490999641,0.01129866,88506.0,88500.0,8.96692146]
[1769490999842,0.01129841,88508.0,88500.0,8.96692146]
[1769491000042,0.11207401,88507.0,88500.0,8.96692146]
[1769491000257,0.11207401,88506.0,88500.0,8.96692146]
[1769491000491,0.01129854,88507.0,88500.0,8.96692146]
[1769491000721,0.11206929,88506.0,88500.0,8.96692146]
[1769491000922,0.01129866,88506.0,88500.0,8.96692146]
[1769491001392,0.01129879,88505.0,88500.0,8.96692146]
[1769491001602,0.01129866,88506.0,88500.0,8.96692146]
[1769491001854,0.01129879,88505.0,88500.0,8.96692146]
[1769491002065,0.01129892,88504.0,88500.0,8.96692146]
[1769491002280,0.01129879,88505.0,88500.0,8.96692146]
[1769491002454,0.01129892,88504.0,88500.0,8.96692146]
[1769491003021,0.01129905,88503.0,88500.0,8.96692146]
[1769491003234,0.01129815,88510.0,88503.0,0.01]
[1769491003431,0.12336166,88509.0,88500.0,8.96692135]
[1769491003634,0.11206338,88508.0,88500.0,8.96692135]
[1769491003843,0.12336192,88507.0,88500.0,8.96692135]
[1769491004030,0.01129866,88506.0,88500.0,8.96692135]
[1769491004235,0.01129879,88505.0,88500.0,8.96692135]
[1769491004443,0.01129905,88503.0,88500.0,8.96692135]
[1769491004643,0.01129905,88503.0,88500.0,8.91030813]
[1769491004843,0.06779453,88503.0,88500.0,7.20257133]
[1769491005049,0.06779453,88503.0,88500.0,6.34870293]
[1769491005415,0.06779453,88503.0,88500.0,6.188091]
[1769491005640,0.01129905,88503.0,88500.0,6.188091]
[1769491005846,0.03954511,88503.0,88500.0,6.17456664]
[1769491006049,0.01129892,88504.0,88500.0,6.17456664]
[1769491006234,0.01129879,88505.0,88500.0,6.17456664]
[1769491006484,0.01129892,88504.0,88500.0,6.17456664]
[1769491006841,0.01129879,88505.0,88500.0,6.17456664]
[1769491007046,0.01129905,88503.0,88500.0,6.17456664]
[1769491007228,0.01129892,88504.0,88500.0,6.17456664]
[1769491008063,0.01129879,88505.0,88500.0,6.17456664]
[1769491008466,0.01129905,88503.0,88500.0,6.17456664]
[1769491008666,0.01129892,88504.0,88500.0,6.17456664]
[1769491009531,0.01129905,88503.0,88500.0,6.17456664]
[1769491010064,0.01129892,88504.0,88500.0,6.17456664]
[1769491010725,0.01129866,88506.0,88500.0,6.17456664]
[1769491011060,0.01129879,88505.0,88500.0,6.17456664]
[1769491011266,0.01129866,88506.0,88500.0,6.17456664]
[1769491011473,0.04115229,88506.0,88500.0,6.17456664]
[1769491012630,0.05245095,88506.0,88500.0,6.17456664]
[1769491012820,0.01129879,88505.0,88500.0,6.17456664]
[1769491013240,0.01129866,88506.0,88500.0,6.17456664]
[1769491013444,0.01129879,88505.0,88500.0,6.17456664]
[1769491013645,0.01016859,88504.0,88500.0,6.17456664]
[1769491014071,0.01129841,88508.0,88501.0,0.02255037]
[1769491014274,0.01129828,88509.0,88501.0,0.02255037]
[1769491014483,0.05649034,88511.0,88501.0,0.72209181]
[1769491014683,0.01129828,88509.0,88501.0,0.72209181]
[1769491014923,0.05649034,88511.0,88501.0,0.72209181]
[1769491015094,0.11208517,88509.0,88502.0,0.02298743]
[1769491015268,0.11208517,88508.0,88502.0,0.02298743]
[1769491015465,0.0112979,88512.0,88502.0,0.02298743]
[1769491015466,0.11208517,88507.0,88502.0,0.69954144]
[1769491015702,0.11208517,88506.0,88504.0,0.69954144]
[1769491016009,0.0112979,88512.0,88505.0,0.02298743]
[1769491016214,0.12338819,88511.0,88505.0,0.02298743]
[1769491016416,0.11209016,88510.0,88505.0,0.02298743]
[1769491016632,0.11209016,88509.0,88505.0,0.02298743]
[1769491016855,0.11209016,88508.0,88505.0,0.02298743]
[1769491017179,0.11209016,88507.0,88505.0,0.02298743]
[1769491017357,0.11209016,88506.0,88505.0,0.02298743]
[1769491017554,0.11209016,88510.0,88505.0,0.02298743]
[1769491017761,0.11209016,88509.0,88505.0,0.02298743]
[1769491017976,0.11209016,88508.0,88505.0,0.02298743]
[1769491018175,0.11209016,88507.0,88505.0,0.02298743]
[1769491018356,0.11209016,88506.0,88505.0,0.02298743]
[1769491018557,0.11209016,88511.0,88505.0,0.02298743]
[1769491018764,0.11209016,88510.0,88505.0,0.02298743]
[1769491018947,0.11209016,88509.0,88500.0,6.17456664]
[1769491019167,0.11209016,88508.0,88500.0,6.17456664]
[1769491019465,0.11209016,88507.0,88500.0,6.17456664]
[1769491019675,0.0112979,88512.0,88500.0,6.17456664]
[1769491019676,0.11209016,88506.0,88500.0,6.87410808]
[1769491019874,0.11209016,88505.0,88501.0,0.02255037]
[1769491020208,0.02708635,88513.0,88500.0,6.17456664]
[1769491020395,0.01129803,88511.0,88500.0,6.17456664]
[1769491020607,0.11212881,88510.0,88500.0,6.17456664]
[1769491020818,0.11212881,88509.0,88500.0,6.17456664]
[1769491021046,0.11212881,88508.0,88500.0,6.17456664]
[1769491021249,0.11212881,88507.0,88500.0,6.17456664]
[1769491021380,0.11212881,88506.0,88500.0,6.17456664]
[1769491021600,0.11212881,88505.0,88500.0,6.17456664]
[1769491021931,0.0112979,88512.0,88500.0,6.17456664]
[1769491022135,0.12343982,88511.0,88500.0,6.17456664]
[1769491022282,0.11214179,88510.0,88500.0,6.17456664]
[1769491022941,0.11214179,88509.0,88500.0,6.17456664]
[1769491023138,0.11214179,88508.0,88500.0,6.17456664]
[1769491023312,0.11214179,88507.0,88500.0,6.17456664]
[1769491023491,0.0112979,88512.0,88500.0,6.17456664]
[1769491023492,0.11214179,88506.0,88500.0,6.17456664]
[1769491023689,0.11214179,88505.0,88500.0,6.17456664]
[1769491023991,0.11214179,88504.0,88501.0,0.6189986]
[1769491024227,0.01129803,88511.0,88501.0,0.02255037]
[1769491024428,0.11219685,88510.0,88501.0,0.02255037]
[1769491024676,0.11219685,88509.0,88501.0,0.02255037]
[1769491024918,0.11219685,88508.0,88501.0,0.02255037]
[1769491025126,0.11219685,88507.0,88501.0,0.02255037]
[1769491025379,0.11219685,88506.0,88500.0,6.17456664]
[1769491025554,0.11219685,88505.0,88500.0,6.17456664]
[1769491025795,0.0112979,88512.0,88500.0,6.17456664]
[1769491026001,0.01129803,88511.0,88500.0,6.17456664]
[1769491027290,0.0112979,88512.0,88500.0,6.17456664]
[1769491027508,0.0112979,88512.0,88500.0,6.11795342]
[1769491027633,0.0112979,88512.0,88500.0,6.00472698]
[1769491027842,0.0112979,88512.0,88500.0,5.83488732]
[1769491028079,0.0112979,88512.0,88500.0,5.66504766]
[1769491028495,0.03838412,88513.0,88500.0,5.60843444]
[1769491028719,0.0112979,88512.0,88500.0,5.60843444]
[1769491029322,0.01129815,88510.0,88500.0,5.60243444]
[1769491031379,0.01129828,88509.0,88500.0,5.60243444]
[1769491031723,0.01129866,88506.0,88500.0,4.80295455]
[1769491032766,0.01129854,88507.0,88500.0,4.80295455]
[1769491032967,0.05649069,88511.0,88500.0,4.80295455]
[1769491033161,0.01129841,88508.0,88500.0,4.80295455]
[1769491033368,0.01129828,88509.0,88500.0,4.80295455]
[1769491034128,0.01129803,88511.0,88500.0,4.80295455]
[1769491035109,0.0112979,88512.0,88500.0,4.80295455]
[1769491035311,0.0112979,88512.0,88500.0,4.68972811]
[1769491035510,0.01129803,88511.0,88500.0,4.63311489]
[1769491037188,0.01129803,88511.0,88500.0,4.57650167]
[1769491037934,0.11220401,88510.0,88500.0,4.57650167]
[1769491038171,0.11220401,88509.0,88500.0,4.57650167]